bitfinex-derivatives/quotes_BTCF0:USTF0_20250424
["timestamp","ask_amount","ask_price","bid_price","bid_amount"]
[1745457881868,0.00997538,93189.0,93188.0,0.1401756]
[1745457882172,0.37077538,93189.0,93188.0,0.1092756]
[1745457891373,0.00997538,93189.0,93188.0,0.1092756]
[1745457891573,0.37077538,93189.0,93188.0,0.1092756]
[1745457894669,0.37077538,93189.0,93188.0,0.1401756]
[1745457895074,0.37077538,93189.0,93181.0,0.1072829]
[1745457895274,0.37077538,93189.0,93147.0,0.5366096]
[1745457895275,0.0928,93188.0,93174.0,0.0536455]
[1745457895474,0.3608,93178.0,93175.0,0.10729]
[1745457895681,0.0626,93177.0,93176.0,0.1715894]
[1745457896979,0.0636,93177.0,93176.0,0.1735894]
[1745457897174,0.0646,93177.0,93176.0,0.1745894]
[1745457897377,0.0636,93177.0,93176.0,0.1725894]
[1745457897579,0.0646,93177.0,93176.0,0.1735894]
[1745457897777,0.0646,93177.0,93176.0,0.0329]
[1745457897778,0.1708882,93177.0,93176.0,0.0329]
[1745457898086,0.0646,93177.0,93176.0,0.002]
[1745457898388,0.0646,93177.0,93176.0,0.1092894]
[1745457898571,0.171924,93177.0,93176.0,0.1092894]
[1745457898976,0.2792122,93177.0,93176.0,0.002]
[1745457899372,0.05365,93167.0,93161.0,0.0844533]
[1745457899684,0.3608,93163.0,93162.0,0.1391055]
[1745457900095,0.1073063,93162.0,93160.0,0.1073071]
[1745457900379,0.0966,93162.0,93161.0,0.1073067]
[1745457900978,0.20394,93162.0,93159.0,0.00536714]
[1745457901175,0.10734,93161.0,93149.0,0.27043655]
[1745457901375,0.4681193,93150.0,93149.0,0.16311715]
[1745457901578,0.5405593,93150.0,93149.0,0.16311715]
[1745457901777,0.64791531,93150.0,93149.0,0.16311715]
[1745457902183,0.63649601,93150.0,93149.0,0.27043765]
[1745457903077,0.52914,93150.0,93149.0,0.1073205]
[1745457903290,0.53014,93150.0,93149.0,0.1073205]
[1745457903494,0.53114,93150.0,93149.0,0.1073205]
[1745457903694,0.49854,93150.0,93149.0,0.1073205]
[1745457903891,0.60589601,93150.0,93149.0,0.1073205]
[1745457904691,0.61681462,93150.0,93149.0,0.1073205]
[1745457905599,0.50945861,93150.0,93149.0,0.1073205]
[1745457905802,0.47865861,93150.0,93149.0,0.1073205]
[1745457906301,0.47865861,93150.0,93149.0,0.1707205]
[1745457907600,0.46774,93150.0,93149.0,0.1707205]
[1745457907789,0.43524,93150.0,93149.0,0.1707205]
[1745457909495,0.3628,93150.0,93149.0,0.1707205]
[1745457923600,0.3628,93150.0,93149.0,0.0634]
[1745457923805,0.1073228,93147.0,93146.0,0.00107358]
[1745457924108,0.0536607,93149.0,93135.0,0.0634]
[1745457924109,0.53275601,93149.0,93135.0,0.0634]
[1745457924305,0.3608,93139.0,93135.0,0.0634]
[1745457924501,0.13584,93138.0,93137.0,0.1073343]
[1745457925604,0.13584,93138.0,93122.0,0.0536754]
[1745457925605,0.2431738,93138.0,93122.0,0.0536754]
[1745457925794,0.2431738,93138.0,93130.0,0.0536712]
[1745457925999,0.13584,93138.0,93135.0,0.1083364]
[1745457926197,0.49664,93138.0,93136.0,0.1073354]
[1745457926396,0.6049738,93138.0,93137.0,0.001]
[1745457926595,0.6049738,93138.0,93137.0,0.1083343]
[1745457926805,0.6059738,93138.0,93137.0,0.1093343]
[1745457927009,0.6059738,93138.0,93137.0,0.1083343]
[1745457927209,0.46534,93138.0,93137.0,0.1073343]
[1745457927713,0.37083752,93138.0,93137.0,0.1073343]
[1745457927909,0.37083752,93138.0,93137.0,0.1708343]
[1745457928607,0.37083752,93138.0,93137.0,0.1718343]
[1745457929003,0.07152,93156.0,93155.0,0.1073136]
[1745457929403,0.07124,93156.0,93155.0,0.1073136]
[1745457930002,0.07124,93156.0,93155.0,0.1716136]
[1745457930204,0.0314,93157.0,93156.0,0.1073124]
[1745457930507,0.0314,93157.0,93156.0,0.1716124]
[1745457931100,0.03964613,93157.0,93156.0,0.1716124]
[1745457932301,0.04064613,93157.0,93156.0,0.1726124]
[1745457932506,0.04164613,93157.0,93156.0,0.1746124]
[1745457933008,0.01024613,93157.0,93156.0,0.1746124]
[1745457933907,0.00924613,93157.0,93156.0,0.1736124]
[1745457934109,0.01024613,93157.0,93156.0,0.1756124]
[1745457934899,0.00924613,93157.0,93156.0,0.1736124]
[1745457935201,0.01024613,93157.0,93156.0,0.1756124]
[1745457935711,0.00924613,93157.0,93156.0,0.1726124]
[1745457935906,0.01024613,93157.0,93156.0,0.1756124]
[1745457937611,0.01024613,93157.0,93156.0,0.1746124]
[1745457947107,3e-08,93157.0,93156.0,0.1746124]
[1745457947315,0.0301,93176.0,93175.0,0.1072905]
[1745457948116,0.0301,93176.0,93175.0,0.1682905]
[1745457949120,0.03819327,93176.0,93175.0,0.1682905]
[1745457949304,0.01109327,93176.0,93175.0,0.1692905]
[1745457949502,0.003,93176.0,93175.0,0.1692905]
[1745457950004,0.0328,93182.0,93176.0,0.1072894]
[1745457950416,0.0328,93182.0,93176.0,0.1687894]
[1745457951314,0.0021,93177.0,93176.0,0.1727894]
[1745457952413,0.0031,93177.0,93176.0,0.1757894]
[1745457953216,0.01103913,93177.0,93176.0,0.1757894]
[1745457953719,0.0031,93177.0,93176.0,0.1757894]
[1745457957024,0.01127661,93177.0,93176.0,0.1757894]
[1745457959819,0.01127661,93177.0,93176.0,0.5365894]
[1745457964424,0.01127661,93177.0,93176.0,0.007]
[1745457964625,0.01127661,93177.0,93176.0,0.1142894]
[1745457965627,0.01127661,93177.0,93176.0,0.1455894]
[1745457967123,0.01127661,93177.0,93176.0,0.1445894]
[1745457973531,0.01127661,93177.0,93176.0,0.1749894]
[1745457973830,0.00161026,93199.0,93198.0,0.1072641]
[1745457974431,0.03201026,93199.0,93198.0,0.1072641]
[1745457975226,0.03401026,93199.0,93198.0,0.1082641]
[1745457975431,0.06531026,93199.0,93198.0,0.1082641]
[1745457976031,0.07617253,93199.0,93198.0,0.001]
[1745457976527,0.07817253,93199.0,93198.0,0.002]
[1745457976730,0.08604695,93199.0,93198.0,0.002]
[1745457976936,0.08404695,93199.0,93198.0,0.001]
[1745457977133,0.08504695,93199.0,93198.0,0.002]
[1745457977322,0.08504695,93199.0,93198.0,0.1092641]
[1745457982939,0.08504695,93199.0,93198.0,0.002]
[1745457983146,0.08504695,93199.0,93198.0,0.1092641]
[1745457989436,0.05464695,93199.0,93198.0,0.1092641]
[1745457989636,0.04378468,93199.0,93198.0,0.1092641]
[1745457990031,0.04378468,93199.0,93198.0,0.1745641]
[1745457993043,0.0544779,93199.0,93198.0,0.1745641]
[1745457997740,0.01248468,93199.0,93198.0,0.1745641]
[1745457997944,8e-08,93199.0,93198.0,0.1745641]
[1745457998145,8e-08,93199.0,93198.0,0.5353641]
[1745457998944,8e-08,93199.0,93198.0,0.64266009]
[1745457999450,0.0011,93207.0,93206.0,0.1072548]
[1745458000457,0.0021,93207.0,93206.0,0.1714548]
[1745458000649,0.0031,93207.0,93206.0,0.1734548]
[1745458000841,0.01118771,93207.0,93206.0,0.1734548]
[1745458001045,0.0031,93207.0,93206.0,0.1734548]
[1745458001450,0.001,93207.0,93206.0,0.1734548]
[1745458001652,1e-07,93208.0,93207.0,0.1072537]
[1745458001953,1e-07,93208.0,93207.0,0.2762417]
[1745458002459,6e-08,93208.0,93207.0,0.2762417]
[1745458002648,0.0704,93219.0,93218.0,0.107241]
[1745458003046,0.0331,93224.0,93223.0,0.1072353]
[1745458003250,0.07056,93229.0,93226.0,0.1072318]
[1745458003451,0.0308,93228.0,93226.0,0.1072318]
[1745458004053,0.0107353,93231.0,93226.0,0.1072318]
[1745458004258,0.3054941,93227.0,93226.0,0.1382318]
[1745458004443,0.00811668,93227.0,93226.0,0.1382318]
[1745458004845,0.3608,93235.0,93234.0,0.1072226]
[1745458005456,0.0011,93237.0,93236.0,0.1072203]
[1745458005655,1e-07,93237.0,93236.0,0.1072203]
[1745458005850,1e-07,93237.0,93236.0,0.1052203]
[1745458006049,1e-07,93237.0,93236.0,0.1322203]
[1745458006556,1e-07,93237.0,93236.0,0.1272203]
[1745458006949,0.0030001,93237.0,93236.0,0.1282203]
[1745458007846,0.01290594,93237.0,93236.0,0.1282203]
[1745458008050,0.0050001,93237.0,93236.0,0.1282203]
[1745458013259,0.01300687,93237.0,93236.0,0.001]
[1745458013563,0.01300687,93237.0,93235.0,0.1072203]
[1745458013564,0.0536104,93236.0,93235.0,0.1072203]
[1745458013758,0.1168104,93236.0,93235.0,0.1072203]
[1745458013952,0.170456,93236.0,93235.0,0.1072203]
[1745458015152,0.0632,93236.0,93235.0,0.1072203]
[1745458015361,0.0642,93236.0,93235.0,0.1072203]
[1745458019863,0.1714203,93236.0,93235.0,0.1072203]
[1745458020162,0.0642,93236.0,93235.0,0.1072203]
[1745458021068,0.0321,93236.0,93235.0,0.1072203]
[1745458021363,0.001,93236.0,93235.0,0.1072203]
[1745458021557,0.001,93236.0,93235.0,0.1702203]
[1745458021948,0.0323,93236.0,93235.0,0.1702203]
[1745458022353,0.0313,93236.0,93235.0,0.1702203]
[1745458022548,0.0323,93236.0,93235.0,0.1702203]
[1745458022751,0.095,93236.0,93235.0,0.1702203]
[1745458028164,0.095,93236.0,93235.0,0.1400203]
[1745458028366,0.095,93236.0,93235.0,0.1072203]
[1745458029369,0.0016094,93246.0,93245.0,0.10721]
[1745458029866,0.0052,93256.0,93244.0,0.063]
[1745458030070,3e-08,93246.0,93245.0,0.13751]
[1745458030257,0.0052,93256.0,93255.0,0.1071985]
[1745458030457,0.0052,93256.0,93255.0,0.4679985]
[1745458030671,0.0052,93256.0,93255.0,0.4669985]
[1745458030972,0.0052,93256.0,93255.0,0.4649985]
[1745458031159,0.0011,93267.0,93266.0,0.1071858]
[1745458032256,0.0011,93267.0,93266.0,0.1061858]
[1745458032462,0.00912872,93267.0,93266.0,0.1061858]
[1745458032661,0.0011,93267.0,93266.0,0.1061858]
[1745458033267,0.0021,93267.0,93266.0,0.1061858]
[1745458033858,0.0031,93267.0,93266.0,0.1061858]
[1745458034589,0.01095574,93267.0,93266.0,0.1061858]
[1745458034767,0.0031,93267.0,93266.0,0.1061858]
[1745458035562,1e-07,93267.0,93266.0,0.1061858]
[1745458036767,5e-08,93267.0,93266.0,0.1061858]
[1745458037173,0.3608,93277.0,93273.0,0.1071778]
[1745458037874,0.031,93276.0,93273.0,0.1071778]
[1745458038069,0.031,93276.0,93273.0,0.1722778]
[1745458038375,0.031,93289.0,93288.0,0.1071606]
[1745458038565,0.10096,93289.0,93288.0,0.1071606]
[1745458038867,0.06996,93289.0,93288.0,0.1071606]
[1745458039666,0.01079843,93293.0,93292.0,0.107156]
[1745458039867,0.08075843,93293.0,93292.0,0.100156]
[1745458040072,0.10096,93293.0,93292.0,0.100156]
[1745458040270,0.031,93293.0,93292.0,0.100156]
[1745458040471,0.0312,93294.0,93293.0,0.1041548]
[1745458040669,0.3608,93295.0,93294.0,0.1041537]
[1745458040870,0.0011,93297.0,93296.0,0.1071514]
[1745458041371,0.1,93300.0,93299.0,0.1031479]
[1745458041571,0.10798454,93300.0,93299.0,0.1031479]
[1745458041780,0.07980064,93300.0,93299.0,0.1031479]
[1745458042266,0.3608,93313.0,93303.0,0.1071433]
[1745458042663,0.01314674,93304.0,93303.0,0.1071433]
[1745458042869,0.0052,93304.0,93303.0,0.1071433]
[1745458043868,0.00805541,93304.0,93303.0,0.1101433]
[1745458044064,1e-07,93304.0,93303.0,0.1101433]
[1745458044372,1e-07,93304.0,93303.0,0.1141433]
[1745458046973,0.00799938,93304.0,93303.0,0.1141433]
[1745458047173,1e-07,93304.0,93303.0,0.1141433]
[1745458050883,0.00784392,93304.0,93303.0,0.1141433]
[1745458051175,0.3608,93318.0,93317.0,0.1071273]
[1745458051375,0.36879255,93318.0,93317.0,0.1071273]
[1745458052178,0.36879255,93318.0,93317.0,0.1717273]
[1745458052581,0.0011,93327.0,93323.0,0.0535597]
[1745458052776,0.0649,93335.0,93334.0,0.1071078]
[1745458053678,0.07290621,93335.0,93334.0,0.1071078]
[1745458053877,0.07390621,93335.0,93334.0,0.1071078]
[1745458054079,0.07390621,93335.0,93334.0,0.1081078]
[1745458054280,0.10700621,93335.0,93334.0,0.1081078]
[1745458057090,0.27900621,93335.0,93334.0,0.1081078]
[1745458065079,0.27900621,93335.0,93334.0,0.4689078]
[1745458065382,0.27900621,93335.0,93334.0,0.1081078]
[1745458069185,0.10700621,93335.0,93334.0,0.1081078]
[1745458070190,0.27900621,93335.0,93334.0,0.1081078]
[1745458071287,0.18100621,93335.0,93334.0,0.1081078]
[1745458071882,0.24600621,93335.0,93334.0,0.1386078]
[1745458072098,0.07400621,93335.0,93334.0,0.1386078]
[1745458078891,0.04230621,93335.0,93334.0,0.1386078]
[1745458079685,0.07350621,93335.0,93334.0,0.1386078]
[1745458085994,0.04230621,93335.0,93334.0,0.1386078]
[1745458086790,0.07320621,93335.0,93334.0,0.1386078]
[1745458087394,0.04230621,93335.0,93334.0,0.1386078]
[1745458088494,0.07410621,93335.0,93334.0,0.1386078]
[1745458088690,0.04230621,93335.0,93334.0,0.1386078]
[1745458092094,0.07560621,93335.0,93334.0,0.1386078]
[1745458092905,0.07560621,93335.0,93331.0,0.00027]
[1745458092906,0.1071101,93332.0,93331.0,0.00027]
[1745458093107,0.6399101,93332.0,93331.0,0.00027]
[1745458093403,0.2255552,93332.0,93327.0,0.0535574]
[1745458093605,0.172,93332.0,93331.0,0.1071112]
[1745458094107,0.00900621,93335.0,93334.0,0.1071078]
[1745458094309,0.11611391,93335.0,93334.0,0.1071078]
[1745458095611,0.11511391,93335.0,93334.0,0.1061078]
[1745458098509,0.1071078,93334.0,93333.0,0.0305]
[1745458099106,0.2791078,93334.0,93333.0,0.0305]
[1745458099902,0.2791078,93334.0,93333.0,0.0315]
[1745458100805,0.2791078,93334.0,93333.0,0.0325]
[1745458101206,0.1071078,93334.0,93333.0,0.0325]
[1745458102208,0.2791078,93334.0,93333.0,0.0325]
[1745458104019,0.2791078,93334.0,93333.0,0.002]
[1745458104214,0.3099078,93334.0,93333.0,0.002]
[1745458106012,0.2028,93334.0,93333.0,0.1091089]
[1745458106217,0.3099078,93334.0,93333.0,0.1091089]
[1745458106415,0.3099078,93334.0,93333.0,0.002]
[1745458106913,0.3099078,93334.0,93333.0,0.0346]
[1745458110114,0.1712078,93334.0,93333.0,0.0346]
[1745458113217,0.3432078,93334.0,93333.0,0.0346]
[1745458114620,0.8432078,93334.0,93333.0,0.0346]
[1745458116310,0.8099078,93334.0,93333.0,0.0346]
[1745458116709,0.8099078,93334.0,93333.0,0.0959]
[1745458117111,0.1379078,93334.0,93333.0,0.0959]
[1745458117518,0.0308,93334.0,93333.0,0.0959]
[1745458117717,0.1379078,93334.0,93333.0,0.0959]
[1745458118123,0.0308,93334.0,93333.0,0.0959]
[1745458118313,0.0308,93334.0,93333.0,0.2030089]
[1745458118915,0.1379078,93334.0,93333.0,0.0959]
[1745458122022,0.00785533,93335.0,93334.0,0.1071078]
[1745458122330,0.00160802,93336.0,93335.0,0.1071066]
[1745458122627,0.00160802,93336.0,93335.0,0.1710066]
[1745458122825,0.00979387,93336.0,93335.0,0.1710066]
[1745458124127,0.06944,93354.0,93351.0,0.1070882]
[1745458124634,0.3608,93356.0,93351.0,0.1070882]
[1745458124829,0.43024,93356.0,93351.0,0.1070882]
[1745458125026,0.43024,93356.0,93350.0,0.0615]
[1745458125027,0.01590865,93352.0,93350.0,0.0615]
[1745458125226,0.0052,93352.0,93350.0,0.0615]
[1745458126429,0.01309488,93352.0,93350.0,0.0615]
[1745458126931,0.01309488,93352.0,93351.0,0.1070882]
[1745458127333,0.01309488,93352.0,93351.0,0.1691882]
[1745458127534,0.02397642,93352.0,93351.0,0.1691882]
[1745458128029,0.02397642,93352.0,93351.0,0.0621]
[1745458128230,0.02397642,93352.0,93351.0,0.1691882]
[1745458129328,0.13106352,93352.0,93351.0,0.0621]
[1745458130019,0.13106352,93352.0,93351.0,0.0303]
[1745458130220,0.30306352,93352.0,93351.0,0.0303]
[1745458130425,0.36796352,93352.0,93351.0,0.0303]
[1745458130820,0.86796352,93352.0,93351.0,0.0303]
[1745458131819,0.83476352,93352.0,93351.0,0.0303]
[1745458132223,0.66276352,93352.0,93351.0,0.0303]
[1745458133122,0.83476352,93352.0,93351.0,0.0303]
[1745458134523,0.8349378,93352.0,93351.0,0.0303]
[1745458137133,0.6629378,93352.0,93351.0,0.0303]
[1745458141223,0.8349378,93352.0,93351.0,0.0303]
[1745458141426,0.7278507,93352.0,93330.0,0.00027]
[1745458141622,0.08440643,93343.0,93334.0,0.0638]
[1745458141830,0.200699,93342.0,93338.0,0.1071028]
[1745458142030,0.1071009,93340.0,93339.0,0.0638]
[1745458143034,0.1071009,93340.0,93339.0,0.0316]
[1745458143436,0.1071009,93340.0,93339.0,0.0336]
[1745458143828,0.1071009,93340.0,93339.0,0.0366]
[1745458146432,0.0936,93342.0,93339.0,0.0366]
[1745458146633,0.1071004,93341.0,93339.0,0.1437016]
[1745458147034,0.0615,93340.0,93339.0,0.1437016]
[1745458147428,0.1686009,93340.0,93339.0,0.1437016]
[1745458147633,0.0615,93340.0,93339.0,0.1427016]
[1745458148342,0.1686009,93340.0,93339.0,0.1427016]
[1745458148746,0.1686009,93340.0,93339.0,0.0356]
[1745458149131,0.1686009,93340.0,93339.0,0.0366]
[1745458149337,0.1686009,93340.0,93339.0,0.143702]
[1745458149941,0.1686009,93340.0,93339.0,0.0366]
[1745458150640,0.0615,93340.0,93339.0,0.143702]
[1745458152339,0.1686009,93340.0,93339.0,0.0366]
[1745458153140,0.0615,93340.0,93339.0,0.143702]
[1745458155234,0.03,93340.0,93339.0,0.143702]
[1745458155440,0.06944,93344.0,93343.0,0.1070974]
[1745458155636,0.06944,93344.0,93341.0,0.0535498]
[1745458155935,0.06944,93344.0,93343.0,0.1070974]
[1745458156334,0.06944,93344.0,93343.0,0.1713974]
[1745458157139,0.06944,93344.0,93343.0,0.1733974]
[1745458157439,0.06944,93344.0,93343.0,0.1753974]
[1745458161849,0.3608,93347.0,93346.0,0.107094]
[1745458162953,0.3608,93347.0,93346.0,0.108094]
[1745458163943,0.3608,93347.0,93346.0,0.109094]
[1745458176755,0.3912,93347.0,93346.0,0.109094]
[1745458181860,0.3912,93347.0,93346.0,0.002]
[1745458182262,0.3912,93347.0,93346.0,0.109094]
[1745458185160,0.0304,93347.0,93346.0,0.109094]
[1745458189666,0.1374928,93347.0,93346.0,0.109094]
[1745458189864,0.1694928,93347.0,93346.0,0.109094]
[1745458191152,0.0624,93347.0,93346.0,0.109094]
[1745458191755,0.1694928,93347.0,93346.0,0.109094]
[1745458193365,0.1374928,93347.0,93346.0,0.109094]
[1745458193859,0.1070909,93349.0,93347.0,0.1070921]
[1745458194057,0.1558847,93350.0,93347.0,0.1403921]
[1745458194259,0.1070905,93349.0,93348.0,0.0308]
[1745458194666,0.1070905,93349.0,93348.0,0.0641]
[1745458195065,0.1372905,93349.0,93348.0,0.0641]
[1745458195266,0.1688905,93349.0,93348.0,0.0641]
[1745458197059,0.1688905,93349.0,93348.0,0.0661]
[1745458197259,0.230075,93350.0,93348.0,0.1731917]
[1745458197459,0.1229847,93350.0,93348.0,0.1731917]
[1745458198769,0.1070905,93349.0,93348.0,0.1731917]
[1745458199472,0.1070905,93349.0,93348.0,0.1721917]
[1745458200066,0.1070905,93349.0,93348.0,0.1731917]
[1745458200269,0.06944,93350.0,93348.0,0.1731917]
[1745458200463,0.06944,93350.0,93349.0,0.1070905]
[1745458200770,0.0011,93357.0,93356.0,0.1070825]
[1745458201076,0.0011,93357.0,93356.0,0.4678825]
[1745458201571,0.0011,93357.0,93356.0,0.5291825]
[1745458202163,0.00896787,93357.0,93356.0,0.5291825]
[1745458202468,0.00160761,93371.0,93370.0,0.1070665]
[1745458202770,0.00160761,93371.0,93370.0,0.4678665]
[1745458202968,0.00160761,93371.0,93370.0,0.5749665]
[1745458203175,9e-08,93381.0,93380.0,0.107055]
[1745458203472,0.1052,93400.0,93380.0,0.4302]
[1745458203672,0.11334352,93400.0,93398.0,0.3608]
[1745458203967,0.12431131,93400.0,93399.0,0.0652]
[1745458204166,0.1070424,93391.0,93390.0,0.3608]
[1745458204474,0.3608,93392.0,93380.0,0.005]
[1745458204771,0.3608,93392.0,93371.0,0.0333]
[1745458204772,0.1070593,93377.0,93371.0,0.0333]
[1745458204969,0.1325,93376.0,93372.0,0.0319]
[1745458205159,0.4115598,93376.0,93372.0,0.0319]
[1745458205365,0.3045,93376.0,93372.0,0.0319]
[1745458205562,0.3045,93376.0,93372.0,0.1389637]
[1745458205766,0.3045,93376.0,93372.0,0.1691637]
[1745458206775,0.3045,93376.0,93372.0,0.1711637]
[1745458207075,0.3045,93376.0,93372.0,0.1771637]
[1745458207574,0.3045,93376.0,93372.0,0.1741637]
[1745458207775,0.3045,93376.0,93372.0,0.1771637]
[1745458207978,0.3045,93376.0,93373.0,0.107062]
[1745458208169,0.2414,93376.0,93375.0,0.1070607]
[1745458209074,0.2414,93376.0,93373.0,0.1070627]
[1745458209265,0.0306,93375.0,93374.0,0.1375619]
[1745458209970,0.0306,93375.0,93374.0,0.0305]
[1745458210171,0.2026,93375.0,93374.0,0.0305]
[1745458210681,0.2026,93375.0,93374.0,0.0345]
[1745458210972,0.2026,93375.0,93374.0,0.006]
[1745458211171,0.3096607,93375.0,93374.0,0.006]
[1745458211764,0.2026,93375.0,93374.0,0.1130619]
[1745458212070,0.172,93375.0,93374.0,0.1130619]
[1745458212277,0.0694,93376.0,93375.0,0.1070607]
[1745458212471,0.0694,93376.0,93375.0,0.5325607]
[1745458212864,0.0694,93376.0,93375.0,0.4255]
[1745458213069,0.3484596,93376.0,93375.0,0.0324]
[1745458213567,0.4122596,93376.0,93375.0,0.0324]
[1745458213771,0.1070607,93375.0,93374.0,0.004]
[1745458213973,0.1070627,93374.0,93371.0,0.0303]
[1745458214168,0.0329,93373.0,93371.0,0.0303]
[1745458214363,0.1399638,93373.0,93371.0,0.0303]
[1745458214568,0.032,93372.0,93371.0,0.0303]
[1745458215179,0.2369,93372.0,93371.0,0.0303]
[1745458216379,0.2369,93372.0,93371.0,0.0323]
[1745458216681,0.2369,93372.0,93371.0,0.0363]
[1745458217474,0.172,93372.0,93371.0,0.0363]
[1745458217777,0.2021,93372.0,93371.0,0.0363]
[1745458218078,0.2343,93372.0,93371.0,0.0363]
[1745458218471,0.3413642,93372.0,93371.0,0.0363]
[1745458218776,0.2343,93372.0,93371.0,0.0363]
[1745458220279,0.3413642,93372.0,93371.0,0.0363]
[1745458220474,0.2343,93372.0,93371.0,0.0363]
[1745458220872,0.3413642,93372.0,93371.0,0.0363]
[1745458223982,0.2343,93372.0,93371.0,0.0363]
[1745458224790,0.3413642,93372.0,93371.0,0.0363]
[1745458225288,0.2343,93372.0,93371.0,0.0363]
[1745458225690,0.3413642,93372.0,93371.0,0.0363]
[1745458225985,0.1070756,93362.0,93347.0,0.053546]
[1745458226189,0.1764356,93362.0,93357.0,0.0309]
[1745458226484,0.1764356,93362.0,93357.0,0.1379809]
[1745458226676,0.13326,93362.0,93358.0,0.0535401]
[1745458226876,0.13326,93362.0,93359.0,0.1070785]
[1745458227390,0.30526,93362.0,93359.0,0.1070785]
[1745458227587,0.24136,93362.0,93361.0,0.1086834]
[1745458228088,0.06936,93362.0,93361.0,0.1729834]
[1745458228385,0.06936,93376.0,93361.0,0.4250186]
[1745458228594,0.0308,93387.0,93386.0,0.1070481]
[1745458228783,0.06936,93387.0,93386.0,0.1070481]
[1745458229695,0.06936,93387.0,93385.0,0.0328]
[1745458229696,0.06936,93389.0,93385.0,0.0328]
[1745458229877,0.06936,93389.0,93388.0,0.1060458]
[1745458231986,0.06936,93389.0,93388.0,0.1080458]
[1745458232378,0.06936,93389.0,93388.0,0.1110458]
[1745458236991,0.12420612,93400.0,93399.0,0.1070332]
[1745458237209,0.19352612,93400.0,93399.0,0.1070332]
[1745458239094,0.19452612,93400.0,93399.0,0.1070332]
[1745458241693,0.19452612,93400.0,93399.0,0.1374332]
[1745458242687,0.18366352,93400.0,93399.0,0.1374332]
[1745458243495,0.11434352,93400.0,93399.0,0.1374332]
[1745458244194,0.11434352,93400.0,93399.0,0.1678332]
[1745458246086,0.11434352,93400.0,93399.0,0.2749012]
[1745458247292,0.11334352,93400.0,93399.0,0.1708332]
[1745458247889,0.11334352,93400.0,93399.0,0.2779012]
[1745458249102,0.07092717,93416.0,93415.0,0.1070149]
[1745458249698,0.07092717,93416.0,93415.0,0.1690149]
[1745458249699,0.00963991,93416.0,93415.0,0.1690149]
[1745458250388,0.01163991,93416.0,93415.0,0.1690149]
[1745458250592,0.0315,93433.0,93416.0,0.0535064]
[1745458250797,0.0315,93433.0,93432.0,0.1049954]
[1745458251197,0.06928,93436.0,93435.0,0.106992]
[1745458252099,0.24128,93436.0,93435.0,0.0303]
[1745458252294,0.31338223,93436.0,93423.0,0.0305]
[1745458252601,0.12844652,93433.0,93409.0,0.3608]
[1745458252794,0.0534988,93430.0,93422.0,0.1070065]
[1745458252995,0.0634,93429.0,93416.0,0.0303]
[1745458253197,0.0634,93429.0,93427.0,0.107001]
[1745458253397,0.0634,93429.0,93428.0,0.107]
[1745458254195,0.10028,93435.0,93434.0,0.1069931]
[1745458254398,0.16428,93435.0,93434.0,0.1069931]
[1745458255200,0.16428,93435.0,93434.0,0.1372931]
[1745458255399,0.16528,93435.0,93434.0,0.1372931]
[1745458256395,0.16528,93435.0,93434.0,0.1069931]
[1745458256601,0.16528,93435.0,93400.0,0.12844652]
[1745458256795,0.16528,93435.0,93427.0,0.0535005]
[1745458256990,0.16528,93435.0,93423.0,0.0331]
[1745458257200,0.33728,93435.0,93431.0,0.1069957]
[1745458257398,0.33728,93435.0,93432.0,0.1069951]
[1745458257698,0.33628,93435.0,93432.0,0.1069951]
[1745458257901,0.33628,93435.0,93423.0,0.0866027]
[1745458258098,0.33628,93435.0,93427.0,0.1070003]
[1745458258298,0.33628,93435.0,93425.0,0.0535017]
[1745458258299,0.5,93434.0,93428.0,0.1069998]
[1745458258602,0.5,93434.0,93432.0,0.001]
[1745458258796,0.064,93433.0,93432.0,0.001]
[1745458259197,0.236,93433.0,93432.0,0.001]
[1745458260593,0.236,93433.0,93428.0,0.1069998]
[1745458261200,0.236,93433.0,93429.0,0.0317]
[1745458262003,0.1069955,93432.0,93429.0,0.0317]
[1745458262190,0.2789955,93432.0,93429.0,0.0317]
[1745458262397,0.0619,93431.0,93429.0,0.0317]
[1745458263102,0.2339,93431.0,93429.0,0.0317]
[1745458264109,0.2339,93431.0,93429.0,0.0327]
[1745458264604,0.2339,93431.0,93429.0,0.0337]
[1745458265198,0.2339,93431.0,93429.0,0.1406988]
[1745458267910,0.2339,93431.0,93430.0,0.0311]
[1745458268409,0.2339,93431.0,93430.0,0.0618]
[1745458268803,0.172,93431.0,93430.0,0.1687977]
[1745458269003,0.172,93431.0,93430.0,0.5295977]
[1745458269197,0.00800223,93436.0,93435.0,0.106992]
[1745458269601,0.10098,93442.0,93441.0,0.1069851]
[1745458271408,0.10098,93442.0,93441.0,0.001]
[1745458271615,0.10892699,93442.0,93441.0,0.001]
[1745458272000,0.14102699,93442.0,93441.0,0.001]
[1745458272200,0.31302699,93442.0,93441.0,0.001]
[1745458272403,0.31302699,93442.0,93441.0,0.003]
[1745458274606,0.31302699,93442.0,93441.0,0.1099851]
[1745458275412,0.28092699,93442.0,93441.0,0.1099851]
[1745458275811,0.17994699,93442.0,93441.0,0.1730851]
[1745458276211,0.00794699,93442.0,93441.0,0.1730851]
[1745458276721,0.07038,93447.0,93446.0,0.1069794]
[1745458277515,0.10328,93447.0,93445.0,0.031]
[1745458277917,0.11150461,93447.0,93445.0,0.031]
[1745458278108,0.28350461,93447.0,93445.0,0.031]
[1745458278413,0.28350461,93447.0,93445.0,0.1379803]
[1745458278615,0.28350461,93447.0,93445.0,0.031]
[1745458278918,0.28350461,93447.0,93432.0,0.3608]
[1745458279108,0.28350461,93447.0,93436.0,0.031]
[1745458279311,0.5,93446.0,93438.0,0.0534942]
[1745458279514,0.6069798,93446.0,93435.0,0.1075419]
[1745458279817,0.3937,93445.0,93435.0,0.0540459]
[1745458280018,0.3937,93445.0,93439.0,0.1069866]
[1745458280213,0.3937,93445.0,93440.0,0.0304]
[1745458280516,0.3937,93445.0,93440.0,0.1373862]
[1745458281217,0.5657,93445.0,93440.0,0.1373862]
[1745458282421,0.5657,93445.0,93440.0,0.1383862]
[1745458282714,0.1069851,93441.0,93440.0,0.001]
[1745458282907,0.1069908,93436.0,93435.0,0.00055]
[1745458283107,0.6397908,93436.0,93435.0,0.00055]
[1745458283314,0.1069931,93434.0,93433.0,0.0304]
[1745458283710,0.1069931,93434.0,93429.0,0.1069988]